bitfinex-derivatives/quotes_SOLF0:USTF0_20250211
["timestamp","ask_amount","ask_price","bid_price","bid_amount"]
[1739235279303,0.03466252,202.09,202.05,0.03597166]
[1739235279901,4.9482,202.06,202.05,0.03597166]
[1739235281709,5.92813845,202.06,201.98,5.92813845]
[1739235281911,4.9487,202.05,201.98,5.92813845]
[1739235282506,5.92813845,202.06,201.98,5.92813845]
[1739235282711,4.9489,202.04,201.98,5.92813845]
[1739235283011,4.98499637,202.04,202.0,0.03458329]
[1739235283303,4.949,202.03,202.0,0.03458329]
[1739235283509,0.03609637,202.04,202.0,0.03458329]
[1739235284209,4.9494,202.02,202.0,0.03458329]
[1739235284411,0.03609637,202.04,202.0,0.03458329]
[1739235285309,4.9493,202.02,202.0,0.03458329]
[1739235287511,4.9495,202.01,202.0,0.03458329]
[1739235288017,0.03609637,202.04,202.0,0.03458329]
[1739235288919,0.03609637,202.04,202.0,5.96272174]
[1739235290621,0.03609637,202.04,202.01,4.9494]
[1739235293519,0.03609637,202.04,202.02,5.92813845]
[1739235296825,0.03609637,202.04,202.0,5.96272174]
[1739235297422,0.03609637,202.04,202.0,10.91242174]
[1739235297723,0.03609637,202.04,202.0,5.96272174]
[1739235298027,4.9492,202.03,202.0,0.03458329]
[1739235298226,5.96423482,202.04,202.0,0.03458329]
[1739235298630,4.9492,202.02,202.0,0.03458329]
[1739235299831,4.9495,202.01,202.0,0.03458329]
[1739235302932,4.9495,202.01,202.0,8.329e-05]
[1739235304724,5.92813845,202.02,202.0,8.329e-05]
[1739235307230,4.9495,202.01,202.0,8.329e-05]
[1739235310837,9.90813845,202.02,201.89,5.92813845]
[1739235311136,5.92813845,201.96,201.87,5.92813845]
[1739235311331,5.92813845,201.96,201.86,5.2292]
[1739235311332,5.92813845,201.96,201.89,5.92813845]
[1739235311733,10.87903845,201.96,201.89,5.92813845]
[1739235311934,5.92813845,201.96,201.89,5.92813845]
[1739235312135,5.92813845,201.96,201.9,0.03180191]
[1739235312136,0.03579462,201.95,201.9,0.03180191]
[1739235313041,4.98699462,201.95,201.9,0.03180191]
[1739235313244,0.03579462,201.95,201.9,0.03180191]
[1739235313539,4.9519,201.91,201.9,0.03180191]
[1739235314042,7.65453845,201.94,201.9,0.03180191]
[1739235314642,4.9515,201.93,201.9,0.03180191]
[1739235315142,5.92813845,201.92,201.9,0.03180191]
[1739235315441,10.87983845,201.92,201.9,0.03180191]
[1739235317241,4.9519,201.91,201.9,0.03180191]
[1739235318435,5.92813845,201.92,201.81,5.92813845]
[1739235318639,5.92813845,201.88,201.81,10.88233845]
[1739235319143,5.92813845,201.88,201.82,4.954]
[1739235319643,0.03245221,201.87,201.83,0.0377477]
[1739235320345,0.03245221,201.87,201.83,5.96588615]
[1739235320544,0.03245221,201.87,201.85,5.92813845]
[1739235321542,0.03245221,201.87,201.85,10.88153845]
[1739235322541,0.03245221,201.87,201.86,4.9531]
[1739235323241,5.92813845,201.96,201.89,4.9522]
[1739235324141,5.92813845,201.98,201.9,10.88003845]
[1739235324447,0.03277488,201.94,201.9,10.91271215]
[1739235325047,0.03277488,201.94,201.91,4.9519]
[1739235325444,0.03277488,201.94,201.92,5.92813845]
[1739235325742,0.03277488,201.94,201.92,10.87973845]
[1739235325946,25.57687612,202.01,201.92,10.87973845]
[1739235325947,20.62717612,202.01,201.92,5.92813845]
[1739235326146,20.62717612,202.01,201.95,5.92813845]
[1739235326347,20.62717612,202.01,201.95,10.87903845]
[1739235326541,20.62717612,202.01,201.95,5.92813845]
[1739235326744,3.98,202.06,201.84,199.2318]
[1739235326745,26.55531457,202.06,201.97,5.92813845]
[1739235327341,0.03596549,202.04,201.99,0.03570019]
[1739235330548,0.03596549,202.04,201.99,5.96383864]
[1739235331652,5.96410394,202.04,201.99,0.03570019]
[1739235332051,4.9497,202.0,201.99,0.03570019]
[1739235332249,10.87783845,202.0,201.99,0.03570019]
[1739235332448,10.87783845,202.0,201.99,1.9e-07]
[1739235332953,4.9513,201.94,201.89,5.92813845]
[1739235333156,4.9513,201.94,201.87,5.92813845]
[1739235334154,0.03664102,201.93,201.88,0.03200301]
[1739235334555,4.98804102,201.93,201.88,0.03200301]
[1739235334749,0.03664102,201.93,201.88,0.03200301]
[1739235336351,4.9519,201.92,201.88,0.03200301]
[1739235338457,4.9522,201.9,201.88,0.03200301]
[1739235339355,4.9524,201.89,201.88,0.03200301]
[1739235341147,5.92813845,201.92,201.88,0.03200301]
[1739235341348,4.9522,201.9,201.88,0.03200301]
[1739235341552,5.92813845,201.92,201.88,0.03200301]
[1739235342858,4.9519,201.91,201.88,0.03200301]
[1739235343964,5.92813845,201.92,201.88,0.03200301]
[1739235344160,10.87983845,201.92,201.88,0.03200301]
[1739235345059,4.9519,201.91,201.88,0.03200301]
[1739235345360,5.92813845,201.92,201.88,0.03200301]
[1739235346156,4.9521,201.91,201.88,0.03200301]
[1739235346555,5.92813845,201.9,201.88,0.03200301]
[1739235347151,5.92813845,201.92,201.88,0.03200301]
[1739235347862,4.952,201.91,201.88,0.03200301]
[1739235348156,5.92813845,201.92,201.88,0.03200301]
[1739235348359,5.92813845,201.9,201.88,0.03200301]
[1739235350761,10.88033845,201.9,201.88,0.03200301]
[1739235352060,5.92813845,201.9,201.88,0.03200301]
[1739235352968,10.87983845,201.92,201.88,0.03200301]
[1739235353263,5.92813845,201.92,201.88,0.03200301]
[1739235354864,5.92813845,201.9,201.88,0.03200301]
[1739235357064,10.87983845,201.92,201.88,0.03200301]
[1739235357264,5.92813845,201.92,201.88,0.03200301]
[1739235357969,10.87983845,201.92,201.88,0.03200301]
[1739235358270,5.92813845,201.92,201.88,0.03200301]
[1739235358999,10.87993845,201.92,201.88,0.03200301]
[1739235359204,5.92813845,201.92,201.88,0.03200301]
[1739235361593,10.88033845,201.9,201.88,0.03200301]
[1739235362092,5.92813845,201.9,201.88,0.03200301]
[1739235365880,5.92813845,201.92,201.88,0.03200301]
[1739235366679,5.92813845,201.9,201.88,0.03200301]
[1739235366983,10.88043845,201.9,201.88,0.03200301]
[1739235367171,5.92813845,201.9,201.88,0.03200301]
[1739235367880,4.9524,201.89,201.88,0.03200301]
[1739235369581,5.92813845,201.9,201.88,0.03200301]
[1739235369776,9.90813845,201.92,201.88,0.03200301]
[1739235370480,4.9519,201.91,201.88,0.03200301]
[1739235371181,5.92813845,201.9,201.88,0.03200301]
[1739235371382,10.88033845,201.9,201.88,0.03200301]
[1739235373378,5.92813845,201.9,201.88,0.03200301]
[1739235374582,9.90813845,201.92,201.88,0.03200301]
[1739235374782,5.92813845,201.92,201.88,0.03200301]
[1739235376983,20.66381714,201.93,201.88,4.98460301]
[1739235377184,0.03664102,201.93,201.88,4.98460301]
[1739235377385,0.03664102,201.93,201.88,0.03200301]
[1739235381584,0.03664102,201.93,201.89,5.92813845]
[1739235381784,0.03664102,201.93,201.9,4.952]
[1739235381981,0.03664102,201.93,201.89,5.92813845]
[1739235382385,0.03664102,201.93,201.89,10.88043845]
[1739235383190,0.03664102,201.93,201.92,4.9517]
[1739235384589,0.03664102,201.93,201.89,11.05203845]
[1739235384993,0.03664102,201.93,201.89,5.1239]
[1739235385792,0.03664102,201.93,201.9,4.9521]
[1739235385992,0.03664102,201.93,201.89,11.05203845]
[1739235386188,0.03664102,201.93,201.88,0.03200301]
[1739235386390,10.87983845,201.92,201.88,0.03200301]
[1739235387091,5.92813845,201.92,201.88,0.03200301]
[1739235388587,4.98804102,201.93,201.88,0.03200301]
[1739235388786,0.03664102,201.93,201.89,5.92813845]
[1739235389393,0.03664102,201.93,201.91,4.9519]
[1739235390193,0.03664102,201.93,201.91,10.88003845]
[1739235390693,0.03664102,201.93,201.91,5.92813845]
[1739235391090,0.03664102,201.93,201.89,10.88033845]
[1739235392894,0.03664102,201.93,201.89,5.92813845]
[1739235393095,0.03664102,201.93,201.9,4.9521]
[1739235393395,0.03664102,201.93,201.91,5.92813845]
[1739235393693,0.03664102,201.93,201.91,10.87983845]
[1739235395293,0.03664102,201.93,201.91,5.92813845]
[1739235399089,0.03664102,201.93,201.89,11.05543845]
[1739235400298,0.03664102,201.93,201.88,0.03200301]
[1739235401600,4.98824102,201.93,201.88,0.03200301]
[1739235402202,4.9518,201.92,201.88,0.03200301]
[1739235404904,4.98804102,201.93,201.88,0.03200301]
[1739235406001,0.03664102,201.93,201.9,4.952]
[1739235406507,0.03664102,201.93,201.89,5.92813845]
[1739235411203,0.03664102,201.93,201.89,10.88043845]
[1739235413509,0.03664102,201.93,201.89,5.92813845]
[1739235414006,0.03664102,201.93,201.89,10.88043845]
[1739235414709,0.03664102,201.93,201.9,4.9521]
[1739235415211,0.03664102,201.93,201.91,5.92813845]
[1739235415506,0.03664102,201.93,201.91,10.88003845]
[1739235415911,0.03664102,201.93,201.91,5.92813845]
[1739235416813,0.03664102,201.93,201.89,5.92813845]
[1739235417013,0.03664102,201.93,201.88,0.03200301]
[1739235418509,5.92813845,201.92,201.88,0.03200301]
[1739235418712,5.92813845,201.9,201.88,0.03200301]
[1739235419409,5.92813845,201.92,201.88,0.03200301]
[1739235419812,4.9519,201.91,201.88,0.03200301]
[1739235420416,5.92813845,201.9,201.88,0.03200301]
[1739235420617,4.9524,201.89,201.88,0.03200301]
[1739235421115,5.92813845,201.9,201.88,0.03200301]
[1739235421713,3.96,201.91,201.88,0.03200301]
[1739235422718,0.03664102,201.93,201.88,0.03200301]
[1739235425710,4.98814102,201.93,201.88,0.03200301]
[1739235426209,0.03664102,201.93,201.88,0.03200301]
[1739235430717,5.92813845,201.92,201.88,0.03200301]
[1739235431311,4.952,201.91,201.88,0.03200301]
[1739235431817,5.92813845,201.92,201.88,0.03200301]
[1739235432920,5.92813845,201.9,201.88,0.03200301]
[1739235433220,4.9524,201.89,201.88,0.03200301]
[1739235438927,18.59906492,201.89,201.88,0.03200301]
[1739235439124,4.9535,201.85,201.79,10.99493845]
[1739235439316,5.92813845,201.86,201.79,10.99493845]
[1739235439522,5.92813845,201.86,201.77,5.92813845]
[1739235439723,4.9537,201.84,201.77,5.92813845]
[1739235440425,0.03693956,201.83,201.78,0.03495041]
[1739235441319,0.03693956,201.83,201.79,5.92813845]
[1739235442021,0.03693956,201.83,201.81,5.92813845]
[1739235443027,0.03693956,201.83,201.81,10.88243845]
[1739235443320,0.03693956,201.83,201.79,10.88283845]
[1739235443524,0.03693956,201.83,201.78,0.03495041]
[1739235444522,4.99103956,201.83,201.78,0.03495041]
[1739235445021,0.03693956,201.83,201.78,0.03495041]
[1739235445227,0.03693956,201.83,201.79,5.92813845]
[1739235446024,0.03693956,201.83,201.81,5.92813845]
[1739235447523,0.03693956,201.83,201.79,10.88273845]
[1739235447723,0.03693956,201.83,201.79,5.92813845]
[1739235448625,0.03693956,201.83,201.79,10.88293845]
[1739235449123,0.03693956,201.83,201.79,5.92813845]
[1739235449329,0.03693956,201.83,201.8,4.9546]
[1739235449825,0.03693956,201.83,201.82,4.9541]
[1739235452932,20.62717612,201.88,201.86,4.9529]
[1739235453128,20.62717612,201.88,201.86,10.88103845]
[1739235453328,20.62717612,201.88,201.86,5.92813845]
[1739235453527,13.64064938,201.9,201.86,5.92813845]
[1739235453728,13.64064938,201.9,201.88,5.92813845]
[1739235455832,13.64064938,201.9,201.88,10.88073845]
[1739235456731,20.66517849,201.91,201.88,10.88073845]
[1739235456732,0.03800237,201.91,201.88,10.88073845]
[1739235457033,0.03800237,201.91,201.88,5.92813845]
[1739235458332,0.03800237,201.91,201.87,0.03341869]
[1739235459334,5.92813845,201.9,201.87,0.03341869]
[1739235459541,5.92813845,201.88,201.87,0.03341869]
[1739235459837,10.88073845,201.88,201.87,0.03341869]
[1739235462447,5.92813845,201.88,201.78,5.92813845]
[1739235462746,5.92813845,201.85,201.78,5.92813845]
[1739235463747,0.0331344,201.84,201.79,0.03392262]
[1739235467948,0.0331344,201.84,201.79,4.98862262]
[1739235468148,0.0331344,201.84,201.8,5.92813845]
[1739235470849,0.0331344,201.84,201.79,0.03392262]
[1739235471449,5.92813845,201.83,201.79,0.03392262]
[1739235471648,5.92813845,201.81,201.79,0.03392262]
[1739235472453,4.9546,201.8,201.79,0.03392262]
[1739235473155,5.92813845,201.81,201.79,0.03392262]
[1739235474854,4.9546,201.8,201.79,0.03392262]
[1739235476862,5.92813845,201.81,201.79,0.03392262]
[1739235479365,26.58893207,201.81,201.79,0.03392262]
[1739235479760,4.9546,201.8,201.79,0.03392262]
[1739235484169,20.66079362,201.82,201.79,0.03392262]
[1739235484862,5.92813845,201.83,201.79,0.03392262]
[1739235485865,5.92813845,201.81,201.79,0.03392262]
[1739235486767,10.88253845,201.81,201.79,0.03392262]
[1739235487065,5.92813845,201.81,201.79,0.03392262]
[1739235488668,5.92813845,201.83,201.79,0.03392262]
[1739235491367,10.88203845,201.83,201.79,0.03392262]
[1739235495071,4.9546,201.8,201.79,0.03392262]
[1739235497774,26.58893207,201.81,201.79,0.03392262]
[1739235499676,34.31790466,201.8,201.79,0.03392262]
[1739235501976,34.31790466,201.8,201.79,4.98872262]
[1739235502776,137.54764192,201.84,201.79,4.98872262]
[1739235502777,20.69392802,201.84,201.79,4.98872262]
[1739235503075,20.69392802,201.84,201.8,5.92813845]
[1739235503876,20.69392802,201.84,201.82,5.92813845]
[1739235504667,20.69392802,201.84,201.8,7.57973845]
[1739235505581,0.0331344,201.84,201.8,7.57973845]
[1739235505976,0.0331344,201.84,201.8,12.53413845]
[1739235506579,0.0331344,201.84,201.8,7.57973845]
[1739235506778,0.0331344,201.84,201.8,1.6516]
[1739235507275,5.92813845,201.83,201.79,0.03392262]
[1739235508275,5.92813845,201.81,201.79,0.03392262]
[1739235508878,4.9546,201.8,201.79,0.03392262]
[1739235515183,20.66079362,201.81,201.79,0.03392262]
[1739235515584,34.31772778,201.8,201.79,0.03392262]
[1739235517780,20.66079362,201.83,201.79,0.03392262]
[1739235520187,4.9867344,201.84,201.79,0.03392262]
[1739235521788,0.0331344,201.84,201.79,0.03392262]
[1739235524787,0.0331344,201.84,201.8,5.92813845]
[1739235525193,0.0331344,201.84,201.82,5.92813845]
[1739235531396,4.9868344,201.84,201.8,5.92813845]
[1739235531597,0.0331344,201.84,201.8,5.92813845]
[1739235531798,0.0331344,201.84,201.79,0.03392262]
[1739235532596,0.0331344,201.84,201.8,5.92813845]
[1739235533190,0.0331344,201.84,201.82,5.92813845]
[1739235535097,0.0331344,201.84,201.8,5.92813845]
[1739235536701,0.0331344,201.84,201.82,5.92813845]
[1739235539109,0.0331344,201.84,201.8,4.9546]
[1739235539110,0.0331344,201.84,201.8,10.88273845]
[1739235539909,0.0331344,201.84,201.82,4.9541]
[1739235540210,0.0331344,201.84,201.82,10.88223845]
[1739235540811,0.0331344,201.84,201.82,5.92813845]
[1739235541911,0.0331344,201.84,201.82,10.88213845]
[1739235542210,0.0331344,201.84,201.82,5.92813845]
[1739235542610,0.0331344,201.84,201.83,4.9539]
[1739235543709,20.66079362,201.9,201.82,5.92813845]
[1739235543904,20.66079362,201.9,201.87,5.92813845]
[1739235544512,20.66079362,201.9,201.85,5.92813845]
[1739235544812,20.69236034,201.9,201.85,5.96498417]
[1739235546415,4.9525,201.89,201.85,0.03684572]
[1739235546614,10.88063845,201.89,201.85,0.03684572]
[1739235546816,5.92813845,201.87,201.85,0.03684572]
[1739235547716,5.92813845,201.87,201.76,1.644]
[1739235547912,5.92813845,201.8,201.68,1.7572]
[1739235548112,5.92813845,201.72,201.65,5.92813845]
[1739235548617,5.92813845,201.72,201.65,10.88643845]
[1739235549008,0.03325307,201.71,201.66,0.03297298]
[1739235551321,0.03325307,201.71,201.67,5.92813845]
[1739235551721,0.03325307,201.71,201.66,0.03297298]
[1739235552620,0.03325307,201.71,201.67,9.29281891]
[1739235553015,0.03325307,201.71,201.66,0.03297298]
[1739235555421,0.03325307,201.71,201.66,4.99077298]
[1739235555622,0.03325307,201.71,201.66,0.03297298]
[1739235556220,0.03325307,201.71,201.67,4.9578]
[1739235556421,0.03325307,201.71,201.66,0.03297298]
[1739235557022,0.03325307,201.71,201.66,4.99097298]
[1739235557622,0.03325307,201.71,201.66,0.03297298]
[1739235558218,0.03325307,201.71,201.67,4.9578]
[1739235558614,0.03325307,201.71,201.66,0.03297298]
[1739235558920,0.03325307,201.71,201.69,4.9572]
[1739235559917,0.03325307,201.71,201.7,4.9571]
[1739235561623,0.03325307,201.71,201.7,14.24991891]
[1739235561823,1.7896,201.79,201.74,4.9559]
[1739235562024,20.66079362,201.8,201.7,9.29281891]
[1739235562523,4.9543,201.82,201.75,4.9558]
[1739235562919,0.03768259,201.81,201.76,0.03597845]
[1739235563125,20.66079362,201.83,201.73,9.29281891]
[1739235563316,0.034896,201.81,201.76,0.03186747]
[1739235563715,0.034896,201.81,201.77,4.9552]
[1739235564015,0.034896,201.81,201.76,0.03186747]
[1739235564423,0.034896,201.81,201.8,4.9546]
[1739235564824,0.034896,201.81,201.76,9.32468638]
[1739235566225,0.034896,201.81,201.78,4.955]
[1739235566422,0.034896,201.81,201.76,9.32468638]
[1739235566925,0.034896,201.81,201.8,4.9546]
[1739235567824,0.034896,201.81,201.79,9.29281891]
[1739235568525,0.034896,201.81,201.79,14.24761891]
[1739235568924,0.034896,201.81,201.79,9.29281891]
[1739235569422,0.034896,201.81,201.78,4.9551]
[1739235573228,0.034896,201.81,201.76,14.28008638]
[1739235573629,0.034896,201.81,201.79,5.94001624]
[1739235575027,0.034896,201.81,201.77,5.94001624]
[1739235578034,0.034896,201.81,201.77,10.89531624]
[1739235579137,0.034896,201.81,201.77,5.94001624]
[1739235579936,0.034896,201.81,201.77,10.89531624]
[1739235580236,0.034896,201.81,201.77,5.94001624]
[1739235581639,0.034896,201.81,201.79,5.94001624]
[1739235582435,0.034896,201.81,201.8,4.9546]
[1739235585637,0.034896,201.81,201.79,10.89481624]
[1739235586141,0.034896,201.81,201.79,5.94001624]
[1739235586841,0.034896,201.81,201.77,5.94001624]
[1739235587845,4.9546,201.8,201.76,0.03186747]
[1739235588139,0.034896,201.81,201.76,0.03186747]
[1739235589645,0.034896,201.81,201.77,5.94001624]
[1739235595549,0.034896,201.81,201.79,5.94001624]
[1739235596256,0.034896,201.81,201.79,10.89471624]
[1739235597249,0.034896,201.81,201.79,5.94001624]
[1739235597455,0.034896,201.81,201.79,10.89481624]
[1739235598353,0.034896,201.81,201.8,4.9546]
[1739235600156,0.034896,201.81,201.79,5.94001624]
[1739235600361,0.034896,201.81,201.77,5.94001624]
[1739235600563,0.034896,201.81,201.79,5.94001624]
[1739235602258,0.034896,201.81,201.79,10.89461624]
[1739235602558,0.034896,201.81,201.79,5.94001624]
[1739235603561,0.034896,201.81,201.8,4.9546]
[1739235604064,20.66079362,201.84,201.83,4.9539]
[1739235604260,68.66796814,201.85,201.83,5.94001624]
[1739235604565,68.66796814,201.85,201.84,4.9536]
[1739235605266,0.03220491,201.87,201.85,4.9532]
[1739235605462,0.03220491,201.87,201.86,5.94001624]
[1739235606863,82.50870451,201.9,201.86,5.94001624]
[1739235607065,30.60569211,201.9,201.89,5.94001624]
[1739235607368,22.46129211,201.9,201.89,10.89241624]
[1739235607561,17.12509211,201.9,201.89,10.89241624]
[1739235607757,14.41029211,201.9,201.89,10.89241624]
[1739235607962,14.41029211,201.9,201.89,5.94001624]
[1739235608368,14.41029211,201.9,201.87,5.97804115]
[1739235608669,0.03669179,201.92,201.89,5.94001624]
[1739235609668,0.03669179,201.92,201.87,0.03802491]
[1739235610564,4.9524,201.89,201.87,0.03802491]
[1739235610764,1.7906,201.91,201.87,0.03802491]
[1739235611173,4.9526,201.89,201.87,0.03802491]
[1739235611472,1.7906,201.91,201.87,0.03802491]
[1739235611664,4.9529,201.88,201.79,9.27233241]
[1739235612072,1.7906,201.91,201.81,4.9543]
[1739235612276,4.9534,201.85,201.76,9.27233241]
[1739235612474,9.27233241,201.9,201.76,9.27233241]
[1739235612675,9.27233241,201.9,201.77,4.9553]
[1739235612870,0.03459707,201.85,201.81,0.03150327]
[1739235614876,0.03459707,201.85,201.83,4.9537]
[1739235615177,0.03459707,201.85,201.81,0.03150327]
[1739235615777,0.03459707,201.85,201.82,4.9541]
[1739235615975,0.03459707,201.85,201.81,0.03150327]
[1739235616276,0.03459707,201.85,201.82,9.27233241]
[1739235616776,0.03459707,201.85,201.84,4.9536]
[1739235617976,0.03459707,201.85,201.82,9.27233241]
[1739235618177,0.03459707,201.85,201.81,0.03150327]
[1739235620377,0.03459707,201.85,201.84,4.9536]
[1739235620878,0.03459707,201.85,201.81,0.03150327]
[1739235621676,0.03459707,201.85,201.84,4.9536]
[1739235627581,1.7906,201.91,201.82,9.27233241]
[1739235627779,4.9513,201.94,201.89,4.9523]
[1739235627984,9.27233241,201.99,201.75,43.92275438]
[1739235627985,1.6459,201.97,201.88,9.27233241]
[1739235628276,1.6459,201.97,201.92,4.9516]
[1739235628479,1.6544,201.95,201.88,9.27233241]
[1739235628775,1.6459,201.97,201.91,9.27233241]
[1739235629182,0.03743648,201.96,201.92,0.03643074]
[1739235629383,0.03743648,201.96,201.95,4.9507]
[1739235629578,0.03743648,201.96,201.92,0.03643074]
[1739235629978,0.03743648,201.96,201.92,4.98793074]
[1739235630281,0.03743648,201.96,201.92,0.03643074]
[1739235630678,0.03743648,201.96,201.93,4.9512]
[1739235631283,0.03743648,201.96,201.92,0.03643074]
[1739235631676,0.03743648,201.96,201.94,9.27233241]
[1739235631880,1.7024,202.04,201.94,9.27233241]
[1739235632184,1.7024,202.04,201.97,9.27233241]
[1739235632486,1.7024,202.04,202.0,4.9497]
[1739235632885,1.7024,202.04,201.97,9.27233241]
[1739235633085,1.73745412,202.04,202.01,4.9493]
[1739235633386,1.73745412,202.04,202.0,0.03322366]
[1739235633587,1.73745412,202.04,201.91,9.27233241]
[1739235633783,1.7024,202.04,201.91,9.27233241]
[1739235633985,4.9495,202.01,201.93,4.9513]
[1739235634484,1.7024,202.04,201.9,4.9521]
[1739235634485,4.9503,201.98,201.9,4.9521]
[1739235634982,0.03283123,201.96,201.92,0.03388463]
[1739235635188,4.98353123,201.96,201.92,0.03388463]
[1739235635389,0.03283123,201.96,201.92,0.03388463]
[1739235636091,4.98353123,201.96,201.92,0.03388463]
[1739235636882,0.03283123,201.96,201.92,0.03388463]
[1739235638089,0.03283123,201.96,201.82,9.27233241]
[1739235638289,4.9518,201.92,201.82,9.27233241]
[1739235638988,1.6436,201.95,201.82,9.27233241]
[1739235638989,4.9513,201.94,201.86,4.9531]
[1739235639190,0.03320126,201.89,201.85,9.30826381]
[1739235639890,0.03320126,201.89,201.87,4.9527]
[1739235641188,0.03320126,201.89,201.88,4.9526]
[1739235641884,1.7506,201.99,201.88,9.27233241]
[1739235642090,1.7506,201.99,201.91,9.27233241]
[1739235642290,4.9496,202.01,201.94,9.27233241]
[1739235642490,3.4708,202.06,201.94,9.27233241]
[1739235643184,0.03802039,202.02,201.98,0.03306611]
[1739235644384,0.03802039,202.02,201.98,4.98316611]
[1739235644584,0.03802039,202.02,201.98,0.03306611]
[1739235644989,0.03802039,202.02,201.91,9.27233241]
[1739235645184,0.03802039,202.02,201.97,9.27233241]
[1739235645386,3.4708,202.06,201.97,9.27233241]
[1739235645791,12.74313241,202.06,201.91,9.27233241]
[1739235646286,0.03748191,202.01,201.96,0.03517045]
[1739235647082,0.03748191,202.01,201.97,9.27233241]
[1739235647487,0.03748191,202.01,202.0,4.9497]
[1739235648189,0.03748191,202.01,201.97,4.9502]
[1739235648393,0.03748191,202.01,201.96,0.03517045]
[1739235649494,4.9497,202.0,201.96,0.03517045]
[1739235649690,0.03748191,202.01,201.96,0.03517045]
[1739235650085,4.9502,201.98,201.96,0.03517045]
[1739235651505,4.9499,202.0,201.96,0.03517045]
[1739235652094,0.03748191,202.01,201.96,0.03517045]
[1739235654899,0.03748191,202.01,201.99,4.9497]
[1739235656092,0.03748191,202.01,201.97,9.27233241]
[1739235656596,0.03748191,202.01,201.99,4.9499]
[1739235657301,82.40839684,202.14,202.0,9.27233241]
[1739235657302,24.02771148,202.12,202.0,9.27233241]
[1739235657490,24.02771148,202.12,202.04,4.9486]
[1739235658301,24.02771148,202.12,201.99,14.81072529]
[1739235658489,0.03389617,202.1,202.06,0.03786717]
[1739235660699,4.98119617,202.1,202.06,0.03786717]
[1739235661098,0.03389617,202.1,202.06,0.03786717]
[1739235663597,4.9475,202.09,202.06,0.03786717]
[1739235663801,0.03389617,202.1,202.06,0.03786717]
[1739235664899,4.9478,202.08,202.06,0.03786717]
[1739235665097,0.03389617,202.1,202.06,0.03786717]
[1739235667211,0.03389617,202.1,202.06,4.98606717]
[1739235667798,0.03389617,202.1,202.06,0.03786717]
[1739235668000,0.03389617,202.1,202.07,14.81072529]
[1739235668703,3.5796,202.19,202.07,14.81072529]
[1739235669107,4.9461,202.15,202.07,19.75852529]
[1739235669308,3.5796,202.19,202.07,14.81072529]
[1739235669907,0.03345623,202.15,202.11,0.0380619]
[1739235671905,4.97955623,202.15,202.11,0.0380619]
[1739235673200,0.03345623,202.15,202.11,0.0380619]
[1739235673802,4.9463,202.14,202.11,0.0380619]
[1739235674009,0.03345623,202.15,202.11,0.0380619]
[1739235674405,4.9463,202.14,202.11,0.0380619]
[1739235675311,0.03345623,202.15,202.11,0.0380619]
[1739235676505,0.03345623,202.15,202.11,4.9848619]
[1739235676813,0.03345623,202.15,202.11,0.0380619]
[1739235677109,0.03345623,202.15,202.14,4.9463]
[1739235679013,6.6234,202.24,202.18,4.9453]
[1739235679315,3.52,202.26,202.15,14.81072529]
[1739235679612,3.52,202.26,202.19,9.24104695]
[1739235680010,1.6407,202.3,202.19,9.24104695]
[1739235680213,0.03138465,202.25,202.2,0.03524946]
[1739235682612,4.97518465,202.25,202.2,0.03524946]
[1739235683317,4.9438,202.24,202.2,0.03524946]
[1739235683513,0.03138465,202.25,202.2,0.03524946]
[1739235683912,4.97518465,202.25,202.2,0.03524946]
[1739235684213,0.03138465,202.25,202.2,0.03524946]
[1739235684413,4.9444,202.22,202.2,0.03524946]
[1739235684612,0.03138465,202.25,202.2,0.03524946]
[1739235686215,4.944,202.24,202.2,0.03524946]
[1739235686416,0.03138465,202.25,202.2,0.03524946]
[1739235688916,0.03138465,202.25,202.23,14.7827268]
[1739235689313,0.03138465,202.25,202.24,4.9438]
[1739235689509,1.7144,202.35,202.23,14.7827268]
[1739235689916,4.9424,202.3,202.25,4.9436]
[1739235690516,4.9421,202.31,202.25,4.9436]
[1739235690718,0.03250017,202.3,202.25,4.97905028]
[1739235691418,0.03250017,202.3,202.25,0.03545028]
[1739235692417,0.03250017,202.3,202.25,4.97895028]
[1739235692615,8.3793,202.37,202.27,14.7827268]
[1739235692808,3.4385,202.37,202.31,14.7827268]
[1739235693118,1.7144,202.39,202.31,14.7827268]
[1739235693419,82.16387741,202.48,202.36,14.7827268]
[1739235693420,67.38115061,202.48,202.36,14.7827268]
[1739235693710,82.40839684,202.49,202.42,14.7827268]
[1739235693917,0.0363788,202.43,202.4,14.7827268]
[1739235694108,82.40839684,202.49,202.4,14.7827268]
[1739235694718,82.40839684,202.49,202.43,4.939]
[1739235695115,82.40839684,202.52,202.43,4.939]
[1739235695315,0.0334414,202.48,202.44,0.03421074]
[1739235696921,82.40839684,202.52,202.44,0.03421074]
[1739235698417,0.03803477,202.5,202.44,0.03421074]
[1739235698721,0.03803477,202.5,202.4,14.7827268]
[1739235698922,0.03803477,202.5,202.48,4.9378]